[Event "1st Serbian League 2022"]
[Site "Vrnjacka Banja"]
[Date "2022.09.29"]
[Round "10.23"]
[White "Ratkovic, Miloje"]
[Black "Zajic, Milan"]
[Result "1/2-1/2"]
[ECO "D38"]
[WhiteElo "2498"]
[BlackElo "2402"]
[Annotator "TA"]
[PlyCount "89"]
[EventDate "2022.09.20"]
[EventType "team-tourn"]
[EventCountry "SRB"]
[SourceTitle "playchess.com"]
[Source "ChessBase"]
[SourceQuality "1"]
[TimeControl "40/5400+30:1800+30"]

{[%evp 13,89,0,32,25,25,0,0,0,37,0,2,-11,50,49,83,97,95,71,74,41,78,80,74,75,80,80,81,67,85,92,99,93,99,50,102,122,133,125,127,146,164,148,162,151,155,51,32,0,0,0,0,0,17,18,107,108,104,0,0,0,0,0,0,0,0,0,0,0,0,0,0,0,0,0,0,0,0,0]} 1. d4 {[%emt 0:00:05]} Nf6 {[%emt 0:00:06]} 2. c4 {[%emt 0:00:09]} e6 {[%emt 0:00:05]} 3. Nf3 {[%emt 0:00:08]} d5 {[%emt 0:00:07]} 4. Nc3 {[%emt 0:00:07]} Bb4 {[%emt 0:00:07]} 5. Qa4+ {[%emt 0:00:06]} Nc6 {[%emt 0:00:06]} 6. a3 {[%emt 0:00:06]} Bxc3+ {[%emt 0:00:31]} 7. bxc3 {[%emt 0:00:07]} Bd7 {[%emt 0:09:08][%cal Oc6d4]} 8. cxd5 $1 {[%emt 0:00:27] The main line 8.cxd5 scores better than 8.Qc2. D38: Queen's Gambit Declined: Ragozin Defence (4 Nf3 Bb4).} exd5 {[%emt 0:00:20]} 9. Bg5 {[%emt 0:01:24]} h6 {[%emt 0:02:58]} 10. Bh4 {[%emt 0:00:10] [#]} Qe7 $146 {[%emt 0:05:16]} ({Predecessor:} 10... O-O 11. Qc2 Na5 12. Ne5 Be6 13. e3 c5 14. Bd3 Rc8 15. O-O cxd4 16. exd4 Qc7 {1-0 (41) Andreikin,D (2729)-Sarana,A (2668) Chess.com INT 2022}) 11. Qb3 {[%emt 0:16:25]} Na5 {[%emt 0:20:02]} 12. Qb4 {[%emt 0:05:21] Black must now prevent Bxf6.} Qxb4 {[%emt 0:12:10]} (12... b6 $11) 13. axb4 $14 {[%emt 0:03:15] And now Bxf6 would win.} Nc4 {[%emt 0:00:17]} 14. Bxf6 {[%emt 0:01:10]} gxf6 {[%emt 0:00:03]} 15. e3 {[%emt 0:03:10]} Nd6 {[%emt 0:01:13][%cal Oa7a5]} 16. Bd3 {[%emt 0:08:31]} Bb5 {[%emt 0:03:28]} 17. Bxb5+ {[%emt 0:06:24]} Nxb5 {[%emt 0:00:03]} 18. Kd2 {[%emt 0:00:16]} Rg8 {[%emt 0:01:24]} 19. g3 {[%emt 0:00:56]} c6 {[%emt 0:18:26]} 20. Kd3 {[%emt 0:01:59]} O-O-O {[%emt 0:05:25]} 21. Nh4 {[%emt 0:04:40]} Rg5 {[%emt 0:04:07]} 22. Rhe1 {[%emt 0:05:08]} Re8 {[%emt 0:03:35]} 23. f3 {[%emt 0:02:05]} ({White should play} 23. Rec1 $16) 23... a6 {[%emt 0:00:37]} (23... f5 $1 $14) 24. e4 $16 {[%emt 0:13:11]} Nd6 {[%emt 0:11:08]} 25. exd5 {[%emt 0:00:46]} Rxe1 {[%emt 0:00:13]} 26. Rxe1 {[%emt 0:00:04]} cxd5 {[%emt 0:00:08][%mdl 4096] Endgame KRN-KRN} 27. Ng2 $1 {[%emt 0:00:16]} Kd7 {[%emt 0:00:13] [#]} 28. Ne3 $1 {[%emt 0:01:06]} Kc6 {[%emt 0:00:20] [#]} 29. Ng4 {[%emt 0:01:13]} (29. Ra1 $1 $16) 29... h5 $1 $14 {[%emt 0:00:17]} 30. Nf2 {[%emt 0:01:50]} h4 {[%emt 0:02:00]} 31. g4 {[%emt 0:02:47]} Rg8 {[%emt 0:01:29]} 32. Re7 {[%emt 0:01:32]} f5 {[%emt 0:00:32]} 33. gxf5 {[%emt 0:02:54] Ng4 is the strong threat.} Rg5 {[%emt 0:00:33]} (33... Re8 $1 $11 34. Rxe8 Nxe8) 34. Ng4 $16 {[%emt 0:12:41] aiming for Ne5+.} Rxf5 {[%emt 0:00:31]} 35. Ke2 {[%emt 0:02:15] White is more active.} ({White must play} 35. Ne5+ $16 Kb5 36. Rd7) 35... Nc4 $11 {[%emt 0:00:30] The position is equal.} 36. Re8 {[%emt 0:02:20]} b6 {[%emt 0:00:24]} 37. Rh8 {[%emt 0:02:54]} a5 {[%emt 0:00:11]} 38. bxa5 {[%emt 0:00:18]} ({Much weaker is} 38. Rxh4 a4 39. Rh8 a3 $17) 38... bxa5 {[%emt 0:00:01]} 39. Ne3 {[%emt 0:01:06]} Nxe3 {[%emt 0:01:16]} 40. Kxe3 {[%emt 0:00:05] KR-KR} a4 {[%emt 0:00:34]} 41. Ra8 {[%emt 0:05:01]} Kb5 {[%emt 0:09:44]} 42. Rb8+ $1 {[%emt 0:00:11]} Ka5 {[%emt 0:00:29]} 43. Ra8+ {[%emt 0:00:08]} Kb5 {[%emt 0:00:16] Threatens to win with ...Rf6.} 44. Rb8+ $1 {[%emt 0:00:07]} Ka5 {[%emt 0:00:10] Strongly threatening ...Rf6.} 45. Ra8+ {[%emt 0:00:09] Weighted Error Value: White=0.11 (very precise) /Black=0.14 (very precise)} 1/2-1/2

[Event "1st Serbian League 2022"]
[Site "Vrnjacka Banja"]
[Date "2022.09.29"]
[Round "10.24"]
[White "Stankovic, Milos"]
[Black "Dimic, Pavle"]
[Result "0-1"]
[ECO "B62"]
[WhiteElo "2439"]
[BlackElo "2352"]
[Annotator "TA"]
[PlyCount "86"]
[EventDate "2022.09.20"]
[EventType "team-tourn"]
[EventCountry "SRB"]
[SourceTitle "playchess.com"]
[Source "ChessBase"]
[SourceQuality "1"]
[TimeControl "40/5400+30:1800+30"]

{[%evp 13,86,26,22,15,18,-7,31,14,23,20,17,13,33,36,33,36,37,33,56,14,31,0,0,0,0,0,0,0,0,0,0,0,0,-133,-9,-45,-45,-180,0,0,27,46,108,0,0,0,0,-29989,0,-89,60,-84,-66,-110,-95,-406,-383,-431,-369,-566,-593,-586,-585,-489,-392,-370,-359,-2782,-2174,-29990,-29991,-29992,-29992,-29993,-29992]} 1. e4 {[%emt 0:01:11]} c5 {[%emt 0:00:06]} 2. Nf3 {[%emt 0:00:30]} d6 {[%emt 0:00:05]} 3. d4 {[%emt 0:00:29]} cxd4 {[%emt 0:00:04]} 4. Nxd4 {[%emt 0:00:31]} Nf6 {[%emt 0:00:06]} 5. Nc3 {[%emt 0:00:30]} Nc6 {[%emt 0:00:07]} 6. Bg5 {[%emt 0:00:30]} e6 {[%emt 0:00:08]} 7. Bb5 {[%emt 0:01:31]} Bd7 {[%emt 0:04:25]} 8. Qd3 {[%emt 0:00:31] B62: Sicilian: Richter-Rauzer: 6...e6: Unusual White 7th moves.} Be7 {[%emt 0:25:51] 8...h6 deserves study.} 9. O-O-O {[%emt 0:01:28]} Qc7 {[%emt 0:10:42]} 10. Rhe1 {[%emt 0:08:30] White is slightly better.} O-O {[%emt 0:35:56]} 11. Bxc6 {[%emt 0:04:39]} bxc6 {[%emt 0:03:15] [#]} 12. Nb3 $146 {[%emt 0:03:20][%cal Oe4e5]} ({Predecessor:} 12. f4 Rab8 13. Nb3 Rfe8 14. e5 Nd5 15. Bxe7 Rxe7 16. exd6 Qxd6 17. g3 f6 18. Ne4 {½-½ (63) Rakotomaharo,F (2475)-Razafindratsima,T (2387) Paris 2021}) 12... e5 {[%emt 0:02:41]} 13. Bxf6 {[%emt 0:01:28]} gxf6 {[%emt 0:00:03]} 14. f4 {[%emt 0:00:42]} Kh8 {[%emt 0:00:39]} 15. f5 {[%emt 0:01:13]} a5 {[%emt 0:00:26]} 16. a4 {[%emt 0:13:44]} Rg8 {[%emt 0:00:45]} 17. g3 {[%emt 0:02:03]} (17. Qh3 {looks sharper.} Rg5 18. g4 Rag8 19. Rg1) 17... Bc8 {[%emt 0:01:06][%cal Bd7c8,Bc8a6,Ba6c4][%mdl 32]} 18. Qc4 {[%emt 0:00:47]} Bd8 {[%emt 0:00:28]} 19. Qe2 {[%emt 0:02:11]} Ba6 {[%emt 0:00:17]} 20. Qh5 {[%emt 0:00:41]} Qe7 {[%emt 0:01:23]} 21. Kb1 {[%emt 0:02:00]} Rb8 {[%emt 0:00:35]} 22. Rd2 {[%emt 0:01:08]} Bc4 {[%emt 0:01:08]} 23. Nc1 {[%emt 0:01:56]} (23. Re3 $11 {remains equal.}) 23... Bb6 {[%emt 0:00:08]} (23... Qb7 24. b3 $15) (23... d5 $17 24. Nd1 Rg5) 24. Red1 {[%emt 0:00:21]} Bc5 {[%emt 0:01:37][%cal Od6d5] Threatens to win with ...d5!} 25. Qh6 {[%emt 0:05:40]} (25. b3 $15) 25... Rb6 $2 {[%emt 0:01:24]} ({Don't do} 25... Qb7 26. Qxf6+ Rg7 27. b3 $18) ({Stronger than} 25... Bd4 26. Rxd4 exd4 27. Rxd4 $11) ({Black should play} 25... Bb4 $1 $19 {[%cal Rb4c3] And now ...Bxc3 would win.} 26. Qe3 Qb7) 26. b3 $1 $11 {[%emt 0:02:08]} Rgb8 {[%emt 0:00:57][%cal Oc5b4]} 27. g4 {[%emt 0:01:49]} Bb4 {[%emt 0:06:33] [#]} (27... Bd4 $14) 28. N1a2 {[%emt 0:01:17]} ({White must play} 28. Rg2 $1 $16) 28... Bxc3 {[%emt 0:00:44] Chess con chili.} 29. Nxc3 {[%emt 0:00:07]} d5 $36 {[%emt 0:02:32][%mdl 2048] Black is pushing.} 30. Ka1 $2 {[%emt 0:12:22][%mdl 8192] [#]} (30. exd5 $11 Qa3 31. Qxf6+ Kg8 32. Qg5+ (32. dxc6 $2 {leads to mate.} Rxb3+ 33. cxb3 Rxb3+ 34. Kc2 Qb2#) 32... Kf8 33. Nb5 cxb5 34. d6 Bxb3 35. Qe7+ Kg8 36. Qg5+ Kh8 37. Qf6+ Kg8 38. Qg5+ Kf8 39. Qe7+ Kg8 40. Qg5+) 30... d4 $2 {[%emt 0:00:23]} (30... Qa3+ $1 {mates} 31. Na2 c5 32. Rb1 d4 33. Rg2 d3 34. Qc1 Qxc1 35. Nxc1 dxc2 36. Rxc2 Bxb3 37. Nxb3 Rxb3 38. Rxb3 Rxb3 39. Ka2 Rb4 40. Ka3 Rxe4 41. Rxc5 Rxg4 42. Rxa5 Rg8 43. Ra7 Re8 44. Rxf7 e4 45. Rd7 e3 46. Rd1 Kg7 47. Kb3 Kh6 48. Kc2 Kg5 49. Kd3 e2 50. Re1 Ra8 51. Kxe2 Rxa4 52. Kf3 Kxf5 53. Rc1 h5 54. Rc8 Ra3+ 55. Kg2 Kg5 56. Rg8+ Kf4 57. Rh8 Kg4 58. Rg8+ Kf4 59. Rh8 Kg5 60. Rg8+ Kf4) 31. Na2 {[%emt 0:00:30]} (31. Nb1 $11) 31... c5 {[%emt 0:00:24]} 32. Rf2 {[%emt 0:03:52]} (32. bxc4 $14 {is the one way to stay ahead.} Kg8 33. Re1) 32... Ba6 $17 {[%emt 0:00:05][%cal Od4d3]} 33. g5 {[%emt 0:00:57]} Qf8 {[%emt 0:00:47]} 34. Qh5 {[%emt 0:01:19][%mdl 8192]} (34. Qxf8+ $17 Rxf8 35. gxf6) 34... fxg5 $19 {[%emt 0:00:34]} 35. f6 {[%emt 0:00:30]} c4 {[%emt 0:00:41]} 36. Qxg5 {[%emt 0:02:52]} (36. Rb1 $142 cxb3 37. Rxb3) 36... cxb3 {[%emt 0:00:41]} 37. cxb3 {[%emt 0:00:06]} Rxb3 {[%emt 0:00:10] White must now prevent ...Bd3.} 38. Rfd2 {[%emt 0:01:19] Against Bd3} Bc4 {[%emt 0:00:33]} 39. Qxe5 {[%emt 0:00:56]} d3 {[%emt 0:00:30] Strongly threatening ...Qd8.} 40. Rg1 $2 {[%emt 0:07:54]} (40. Qg3) 40... Qd8 {[%emt 0:00:45] ( -> ...Qb6)} 41. Rf1 {[%emt 0:38:01]} Qb6 {[%emt 0:04:48] Black mates.} 42. Rdd1 {[%emt 0:00:00]} Ra3 {[%emt 0:02:58][%csl Gc4][%cal Ra3a2]} 43. Rf2 {[%emt 0:00:00]} Qb3 {[%emt 0:02:04] Weighted Error Value: White=0.78/Black=0.42} 0-1

[Event "1st Serbian League 2022"]
[Site "Vrnjacka Banja"]
[Date "2022.09.29"]
[Round "10.25"]
[White "Budisavljevic, Luka"]
[Black "Risteski, Emil"]
[Result "1-0"]
[ECO "E94"]
[WhiteElo "2524"]
[BlackElo "2364"]
[Annotator "TA"]
[PlyCount "65"]
[EventDate "2022.09.20"]
[EventType "team-tourn"]
[EventCountry "SRB"]
[SourceTitle "playchess.com"]
[Source "ChessBase"]
[SourceQuality "1"]
[TimeControl "40/5400+30:1800+30"]

{[%evp 18,65,99,64,97,77,81,48,62,0,0,0,2,0,7,7,3,0,40,39,39,37,30,27,47,37,58,7,266,245,262,193,195,191,268,247,241,230,313,330,385,383,29990,29991,29993,29994,29997,29998,29998,29999]} 1. d4 {[%emt 0:00:27]} Nf6 {[%emt 0:00:17]} 2. c4 {[%emt 0:00:05]} g6 {[%emt 0:00:06]} 3. Nc3 {[%emt 0:00:10]} Bg7 {[%emt 0:00:04]} 4. e4 {[%emt 0:00:05]} d6 {[%emt 0:00:04]} 5. Be2 {[%emt 0:00:10]} O-O {[%emt 0:00:29]} 6. Nf3 {[%emt 0:00:04]} Nbd7 {[%emt 0:01:04]} 7. O-O {[%emt 0:02:22]} e5 {[%emt 0:00:30]} 8. Be3 {[%emt 0:01:27]} c6 {[%emt 0:00:40]} 9. d5 {[%emt 0:00:23]} c5 {[%emt 0:00:11]} 10. Ne1 {[%emt 0:00:23] White is more active.} Kh8 {[%emt 0:00:28] E94: King's Indian: Classical: 6 Be2 e5 7 0-0: Various Black 7th moves.} 11. Qd2 {[%emt 0:02:13]} Ng8 {[%emt 0:02:06]} 12. g4 {[%emt 0:01:06]} f5 {[%emt 0:04:14] And now ...f4 would win. White is slightly better.} 13. gxf5 {[%emt 0:00:56]} (13. Bg5 $14 Bf6 14. Bxf6+ Ngxf6 15. f3 (15. gxf5 gxf5 16. exf5 Nb6 $11)) 13... gxf5 $11 {[%emt 0:00:06]} 14. exf5 {[%emt 0:01:02]} Ndf6 {[%emt 0:03:08] [#]} 15. Nf3 $146 {[%emt 0:07:57]} ({Predecessor:} 15. Bd3 Ne7 16. Qc2 Qe8 17. Ng2 Qh5 18. f3 Nxf5 19. Bxf5 Bxf5 20. Qd2 Rf7 21. Ne2 {0-1 (32) Guadalpi,D (2317)-Jaracz,P (2530) Warsaw 2005}) 15... Bxf5 {[%emt 0:19:53]} 16. Ng5 {[%emt 0:01:16]} Qe7 {[%emt 0:02:08]} 17. Kh1 {[%emt 0:01:13]} Ng4 {[%emt 0:07:25]} 18. Bxg4 {[%emt 0:01:27]} Bxg4 {[%emt 0:00:04]} 19. Rg1 {[%emt 0:06:53]} Nf6 {[%emt 0:01:20]} 20. Rg3 {[%emt 0:04:21] Hoping for Rag1.} Bf5 {[%emt 0:04:23]} 21. Qe2 {[%emt 0:02:40]} Qe8 {[%emt 0:07:46]} 22. Nb5 {[%emt 0:07:16]} (22. Rg2 $14) 22... Nh5 $2 {[%emt 0:13:40][%mdl 8192] [#] A mistake that costs the game.} (22... Qd7 $11 {and Black has nothing to worry.}) 23. Rg2 $1 $18 {[%emt 0:08:55]} Qg6 {[%emt 0:03:49] [#]} 24. Nxd6 $1 {[%emt 0:04:53][%mdl 512]} Qxd6 {[%emt 0:00:31]} 25. Qxh5 {[%emt 0:00:08][%cal Oe3c5] Bxc5! is the strong threat.} Bg6 {[%emt 0:00:04]} (25... Qg6 $142 26. Qxg6 hxg6) 26. Qg4 {[%emt 0:04:02][%cal Og5h7] Threatens to win with Nxh7!} Bf5 {[%emt 0:03:16]} 27. Qh4 {[%emt 0:00:57]} b5 {[%emt 0:00:51]} 28. Rag1 {[%emt 0:04:23][%cal Og5h7] Nxh7! would kill now.} Bf6 {[%emt 0:00:22]} 29. Qh6 {[%emt 0:08:17][%cal Og5h7] White threatens Nxh7! and mate.} bxc4 $2 {[%emt 0:07:30] [#]} (29... Qe7 $18 30. cxb5 Rad8) 30. Bxc5 $1 {[%emt 0:00:41][%mdl 512] White mates.} Qxc5 {[%emt 0:01:49] [#]} (30... Bg7 31. Qxd6) 31. Nxh7 $1 {[%emt 0:00:07][%mdl 512]} Bxh7 {[%emt 0:00:20] [#]} (31... Bg5 32. Nxg5+) 32. Rg8+ $3 {[%emt 0:00:03][%mdl 576] Deflection} Rxg8 {[%emt 0:00:03]} 33. Qxf6+ {[%emt 0:00:04] Weighted Error Value: White=0.13 (very precise) /Black=0.66} 1-0

[Event "1st Serbian League 2022"]
[Site "Vrnjacka Banja"]
[Date "2022.09.29"]
[Round "10.26"]
[White "Djokic, Mihailo"]
[Black "Puranik, Abhimanyu"]
[Result "1/2-1/2"]
[ECO "B85"]
[WhiteElo "2197"]
[BlackElo "2603"]
[Annotator "TA"]
[PlyCount "80"]
[EventDate "2022.09.20"]
[EventType "team-tourn"]
[EventCountry "SRB"]
[SourceTitle "playchess.com"]
[Source "ChessBase"]
[SourceQuality "1"]
[TimeControl "40/5400+30:1800+30"]

{[%evp 27,80,0,15,8,22,19,24,0,84,80,82,102,234,217,307,296,259,115,105,-39,-46,-108,-81,-75,0,0,0,0,0,0,0,0,0,0,0,0,0,0,0,0,0,0,0,0,0,0,0,0,0,0,0,0,0,0,0]} 1. e4 {[%emt 0:00:03]} c5 {[%emt 0:00:09]} 2. Nf3 {[%emt 0:00:03]} e6 {[%emt 0:00:06]} 3. d4 {[%emt 0:00:03]} cxd4 {[%emt 0:00:03]} 4. Nxd4 {[%emt 1:32:21]} Nc6 {[%emt 0:00:07]} 5. Nc3 {[%emt 0:00:00]} a6 {[%emt 0:00:04]} 6. Be2 {[%emt 0:00:00]} Qc7 {[%emt 0:00:20]} 7. O-O {[%emt 0:00:00]} Nf6 {[%emt 0:00:25]} 8. Be3 {[%emt 0:00:00]} Be7 {[%emt 0:00:19]} 9. f4 {[%emt 0:00:00]} d6 {[%emt 0:00:05]} 10. Kh1 {[%emt 0:00:00]} O-O {[%emt 0:00:25]} 11. Qe1 {[%emt 0:00:00]} Nxd4 {[%emt 0:01:44]} 12. Bxd4 {[%emt 0:00:00]} b5 {[%emt 0:00:48]} 13. a3 {[%emt 0:00:00]} Bb7 {[%emt 0:01:36]} 14. Qg3 {[%emt 0:00:00]} Rad8 {[%emt 0:01:01]} 15. Rae1 {[%emt 0:00:00] B85: Sicilian Scheveningen: 6 Be2 a6, lines with early Be3.} Rd7 {[%emt 0:00:46]} 16. Bd3 {[%emt 0:00:00]} Re8 {[%emt 0:03:40]} 17. Qh3 {[%emt 0:00:00][%cal Oc3d5] Black must now prevent Nd5! White has an edge.} g6 {[%emt 0:09:41]} (17... e5 $11) 18. f5 $1 $16 {[%emt 0:00:00] And now fxg6 would win. White is more active.} (18. Qh6 e5 19. Bg1 d5 $11) 18... e5 {[%emt 0:02:15]} 19. Be3 {[%emt 0:00:00]} Qc8 {[%emt 0:18:01]} (19... Bd8 $16 {was necessary.}) 20. Bg5 $1 $18 {[%emt 0:00:00] [#]} Rc7 $146 {[%emt 0:21:03]} (20... Nh5 $142) ({Predecessor:} 20... Nh5 21. f6 h6 22. Be2 hxg5 23. Bxh5 Bf8 24. Bg4 Red8 25. Qe3 Bh6 {1-0 (41) Himanshu,S (2469)-Gareyev,T (2606) Bhopal 2017}) 21. Qh4 $1 {[%emt 0:00:00]} (21. fxg6 Qxh3 22. gxh3 Kg7 $16) 21... Nh5 {[%emt 0:00:14] [#]} 22. f6 {[%emt 0:00:00]} (22. Bxe7 $1 $18 {and the rest is easy.} Rexe7 23. Be2) 22... Bf8 $16 {[%emt 0:01:35]} 23. g4 {[%emt 0:00:00]} (23. Nd5 $16) 23... Nf4 $1 $15 {[%emt 0:00:30]} 24. Re3 {[%emt 0:00:00]} (24. Bxf4 $15 exf4 25. g5 (25. Rxf4 Qe6 $11)) 24... Rxc3 {[%emt 0:21:42]} 25. bxc3 {[%emt 0:10:30]} d5 {[%emt 0:00:18]} ({Black should try} 25... Qxc3 $17 26. Bh6 Qc5) 26. Rxf4 $11 {[%emt 0:00:00] The position is equal.} ({Reject} 26. Bxf4 exf4 27. Rxf4 (27. Rh3 $2 h6 $19) 27... Qxc3 $17) 26... exf4 {[%emt 0:00:11]} 27. Rh3 {[%emt 0:00:00][%csl Gh3][%cal Rh4h7]} h5 {[%emt 0:00:49]} 28. gxh5 {[%emt 0:00:00]} dxe4 {[%emt 0:00:10]} 29. Be2 {[%emt 0:00:00] White threatens hxg6 and mate.} e3+ {[%emt 0:04:36]} 30. Kg1 $1 {[%emt 0:00:00]} Qc6 {[%emt 0:04:17][%csl Gb7][%cal Rc6h1]} (30... Qxc3 $2 31. hxg6 Bh6 32. gxf7+ Kxf7 33. Qh5+ Ke6 34. Qxe8+ $18) 31. Rf3 {[%emt 0:00:00] Threatening mate with hxg6.} (31. Bf3 {[#]} e2 $1 32. Bxc6 Bc5+ 33. Kg2 Bxc6+ 34. Rf3 Re3 $19) 31... Re5 $1 {[%emt 0:03:50]} (31... Bxa3 32. hxg6 fxg6 33. f7+ Kxf7 34. Qxf4+ (34. Qh7+ Ke6 $16) 34... Ke6 35. Rxe3+) 32. hxg6 {[%emt 0:00:00] Dancing on a razor blade.} fxg6 {[%emt 0:00:02] Threatens to win with ...Rf5.} 33. f7+ $1 $40 {[%emt 0:00:00][%mdl 128] White attacks.} Kxf7 {[%emt 0:00:05] aiming for ...Rf5.} 34. Rxf4+ {[%emt 0:00:00]} Ke8 {[%emt 0:01:37][%csl Gb7][%cal Rc6h1]} 35. Rxf8+ $1 {[%emt 0:05:00]} Kxf8 {[%emt 0:00:04][%csl Gb7][%cal Rc6g2]} 36. Qh8+ {[%emt 0:00:00]} Kf7 {[%emt 0:00:02][%csl Gb7][%cal Rc6h1]} 37. Qh7+ {[%emt 0:00:00]} Kf8 {[%emt 0:00:19][%csl Gb7][%cal Rc6g2]} (37... Ke6 38. Qg8+ Kf5 39. Qf8+ Ke6 40. Qf6+ Kd5 41. Bf3+ Re4 42. Qe7 $18) 38. Qh8+ {[%emt 0:00:00]} Kf7 {[%emt 0:00:05][%csl Gb7][%cal Rc6g2]} 39. Qh7+ {[%emt 0:00:00]} Kf8 $1 {[%emt 0:06:56][%csl Gb7][%cal Rc6h1]} (39... Ke6 $2 40. Qg8+ Kd6 41. Qf8+ Kd7 42. Qd8+ Ke6 43. Qf6+ Kd5 44. Bf3+ Re4 45. Qe7 $18) 40. Qh8+ Kf7 {[%emt 0:00:00] Weighted Error Value: White=0.16 (very precise) /Black=0.22 (precise)} 1/2-1/2

[Event "1st Serbian League 2022"]
[Site "Vrnjacka Banja"]
[Date "2022.09.29"]
[Round "10.27"]
[White "Pap, Misa"]
[Black "Jocev, Milan"]
[Result "0-1"]
[ECO "C77"]
[WhiteElo "2381"]
[BlackElo "2283"]
[Annotator "TA"]
[PlyCount "116"]
[EventDate "2022.09.20"]
[EventType "team-tourn"]
[EventCountry "SRB"]
[SourceTitle "playchess.com"]
[Source "ChessBase"]
[SourceQuality "1"]
[TimeControl "40/5400+30:1800+30"]

{[%evp 16,116,14,2,18,14,32,6,31,14,35,25,40,15,10,-36,-30,-51,-51,-56,-54,-54,-51,-51,-50,-50,-58,-50,-50,-72,-68,-134,-129,-208,-209,-209,-209,-208,-213,-357,-200,-412,-412,-404,-374,-510,-482,-499,-499,-499,-473,-492,-493,-512,-494,-515,-473,-504,-480,-521,-520,-501,-469,-725,-710,-1015,-945,-4133,-3158,-29990,-29983,-29983,-2473,-29984,-29985,-29986,-29984,-29984,-29984,-29979,-29980,-29980,-29981,-29981,-29982,-29987,-29988,-29988,-29989,-29989,-29990,-29992,-29993,-29993,-29994,-29994,-29995,-29995,-29996,-29997,-29998,-29998,-29999]} 1. e4 {[%emt 0:01:57]} e5 {[%emt 0:00:07]} 2. Nf3 {[%emt 0:00:41]} Nc6 {[%emt 0:00:06]} 3. Bb5 {[%emt 0:00:17]} a6 {[%emt 0:00:08]} 4. Ba4 {[%emt 0:00:06]} Nf6 {[%emt 0:00:08]} 5. O-O {[%emt 0:00:11]} Be7 {[%emt 0:00:11]} 6. d3 {[%emt 0:00:19]} b5 {[%emt 0:00:44]} 7. Bb3 {[%emt 0:00:07]} O-O {[%emt 0:00:52]} 8. Nc3 {[%emt 0:00:07]} d6 {[%emt 0:01:20]} 9. a3 {[%emt 0:00:01]} Na5 {[%emt 0:00:57] C77: Ruy Lopez: 3...a6 4 Ba4 Nf6, unusual lines.} 10. Ba2 {[%emt 0:00:01]} c5 {[%emt 0:00:13]} 11. Nd5 {[%emt 0:03:50]} (11. b4 $5 {[%cal Rb4a5]} Nc6 12. Nd5 $11) 11... Nc6 {[%emt 0:06:43] The position is equal.} 12. c3 {[%emt 0:03:42]} h6 {[%emt 0:03:35]} 13. b4 {[%emt 0:12:05]} Be6 {[%emt 0:08:27] [#]} 14. Nh4 $146 {[%emt 0:26:49]} ({Predecessor:} 14. Be3 Ng4 15. Bd2 Re8 16. a4 cxb4 17. cxb4 Nf6 18. axb5 axb5 19. Bb3 Rc8 20. Ra6 {0-1 (57) Bjerre,J (2569)-Niemann,H (2638) Riga 2021}) 14... c4 {[%emt 0:20:07]} 15. Nxe7+ {[%emt 0:10:14]} (15. dxc4 $11 {should be considered.} Nxe4 16. Nf3) 15... Qxe7 $15 {[%emt 0:01:30]} 16. Qf3 {[%emt 0:12:33] [#]} Nxe4 $1 {[%emt 0:12:22]} 17. Qxe4 {[%emt 0:04:17][%cal Rd3c4]} d5 {[%emt 0:00:11]} 18. Nf5 {[%emt 0:00:02]} dxe4 {[%emt 0:00:14]} 19. Nxe7+ {[%emt 0:00:03]} Nxe7 {[%emt 0:00:07]} 20. dxe4 {[%emt 0:00:02]} a5 {[%emt 0:01:42]} 21. bxa5 {[%emt 0:04:16]} Nc6 {[%emt 0:04:36][%cal Be7c6,Bc6a5,Ba5b3][%mdl 32]} 22. Be3 {[%emt 0:00:46]} Nxa5 {[%emt 0:00:20] Black converts the advantage convincingly.} 23. Rab1 {[%emt 0:08:03]} ({White should try} 23. Bc5 $15) 23... Nb3 $17 {[%emt 0:00:37]} 24. Bxb3 {[%emt 0:00:01]} (24. f4 $17 {was necessary.}) 24... cxb3 $19 {[%emt 0:00:08]} 25. Bc5 {[%emt 0:00:12] [#]} Rfd8 {[%emt 0:00:23] Hoping for ...Rd2.} 26. Rb2 {[%emt 0:02:15] Against Rd2} Rd3 {[%emt 0:01:44]} 27. Rc1 {[%emt 0:01:03]} (27. Rfb1 {keeps fighting.}) 27... Bc4 {[%emt 0:00:35]} (27... Rc8 $142 28. Bb4 Rcd8) 28. f3 $2 {[%emt 0:01:30]} (28. g3) 28... Rad8 {[%emt 0:00:37]} 29. Rcb1 {[%emt 0:00:39]} Rxc3 {[%emt 0:01:23]} 30. Kf2 {[%emt 0:02:59]} Rc2+ {[%emt 0:03:58]} 31. Rxc2 {[%emt 0:00:11]} bxc2 {[%emt 0:00:07][%mdl 4096] Endgame KRB-KRB} 32. Rc1 {[%emt 0:00:00]} Rd2+ {[%emt 0:00:23]} 33. Kg3 {[%emt 0:00:02]} Bd3 {[%emt 0:02:12]} 34. Be3 {[%emt 0:00:56]} Re2 {[%emt 0:00:37]} 35. Bc5 {[%emt 0:00:10]} f6 {[%emt 0:00:16]} 36. Bb4 {[%emt 0:00:19]} Kf7 {[%emt 0:00:11]} 37. h4 {[%emt 0:00:14]} h5 {[%emt 0:01:08]} 38. Ra1 {[%emt 0:01:41]} g6 {[%emt 0:01:22][%cal Bg7g6,Bg6f5,Bf5f4][%mdl 32]} 39. Rc1 {[%emt 0:00:04]} (39. Bc3 $142) 39... f5 {[%emt 0:00:18]} 40. exf5 {[%emt 0:00:13]} gxf5 {[%emt 0:00:06] And now ...f4+ would win.} 41. Kh3 {[%emt 0:30:38]} f4 {[%emt 1:00:15] aiming for ...e4.} 42. g4 {[%emt 0:03:40]} Ke6 {[%emt 0:00:00]} 43. Bc3 {[%emt 0:00:49]} Kd5 {[%emt 0:00:00]} (43... Rf2 $142 44. Bd2 Rxd2 45. a4 bxa4 46. Rh1 Rd1 47. Kh2 c1=Q 48. Rxd1 Qxd1 49. Kg2 Bf1+ 50. Kg1 Qxf3 51. gxh5 Qg2#) 44. Bb2 {[%emt 0:00:01]} Rf2 {[%emt 0:00:00] Black mates.} 45. Re1 {[%emt 0:00:11]} Rxf3+ {[%emt 0:00:00]} 46. Kh2 {[%emt 0:00:13]} Rf2+ {[%emt 0:00:00]} 47. Kg1 {[%emt 0:00:02]} Re2 {[%emt 0:00:00]} 48. Rxe2 {[%emt 0:00:01]} Bxe2 {[%emt 0:00:00] KB-KB} 49. g5 {[%emt 0:00:17]} Bd3 {[%emt 0:00:00]} 50. Kf2 {[%emt 0:00:01]} e4 {[%emt 0:00:00]} 51. g6 {[%emt 0:00:02]} e3+ {[%emt 0:00:00]} 52. Kf3 {[%emt 0:00:01]} Bxg6 {[%emt 0:00:00]} 53. Kxf4 {[%emt 0:00:01]} e2 {[%emt 0:00:00]} 54. Kg5 {[%emt 0:00:01]} Be8 {[%emt 0:00:00]} 55. Kh6 {[%emt 0:00:01]} e1=Q {[%emt 0:00:00]} 56. Kg7 {[%emt 0:00:02]} Qe6 {[%emt 0:00:00]} 57. Bc1 {[%emt 0:00:05]} Qg6+ {[%emt 0:00:00]} 58. Kh8 {[%emt 0:00:01]} Bf7 {[%emt 0:00:00] Weighted Error Value: White=0.63/Black=0.18 (very precise)} 0-1